Cogmind - Beta 13 @@@ ROGUE MODE // 2024.07.05 @ 16:56:01 Player: Phosphophyllite Result: Self-destructed Performance ------------- Evolutions (1) 500 Regions Visited (3) 600 Robots Destroyed (8) 40 Value Destroyed (136) 136 Prototype IDs (0) 0 Alien Tech Used (0) 0 Bonus (0) 0 TOTAL SCORE: 1276 Bonus ------- None Cogmind --------- Core Integrity 310/400 Matter 320/350 Energy 250/250 System Corruption 0% Temperature Cool (0) Movement Treading (160) Location -9/Materials Parts ------- > --- POWER (1) -------- Ion Engine > --- PROPULSION (2) --- Light Treads Light Treads > --- UTILITY (4) ------ Small Storage Unit Small Matter Pod > --- WEAPON (2) ------- Light Assault Rifle > --- INVENTORY (8) ---- Ion Engine Wheel Hover Unit Mining Laser Peak State ------------ > --- POWER ------------ Ion Engine > --- PROPULSION ------- Aluminum Leg Aluminum Leg > --- UTILITY ---------- Small Storage Unit Improved Terrain Scanner > --- WEAPON ----------- Medium Laser Small Laser > --- INVENTORY -------- Ion Engine Light Treads Light Treads Wheel Wheel Compact Wheel Small Matter Pod Small Laser [Rating: 9] Favorites ----------- Power Ion Engine Engine Ion Engine Propulsion Aluminum Leg Treads Light Treads Leg Aluminum Leg Utility Small Storage Unit Device Improved Terrain Scanner Storage Small Storage Unit Weapon Medium Laser Energy Gun Medium Laser Ballistic Gun Light Assault Rifle Launcher Grenade Launcher Build | -11 -10 -10 -9 ------- Run | Yrd Mat Min Mat Slots Evolved 2 | . . . 2 Power . | . . . . Propulsion . | . . . . Utility 2 | . . . 2 Weapon . | . . . . Parts Attached 13 | 8 . 1 4 Power 1 | 1 . . . Engine 1 | 1 . . . Core . | . . . . Reactor . | . . . . Propulsion 5 | 3 . . 2 Treads 3 | 1 . . 2 Leg 2 | 2 . . . Wheel . | . . . . Hover . | . . . . Flight . | . . . . Utility 3 | 2 . . 1 Device 1 | 1 . . . Storage 2 | 1 . . 1 Processor . | . . . . Hackware . | . . . . Protection . | . . . . Artifact . | . . . . Weapon 4 | 2 . 1 1 Energy Gun 2 | 2 . . . Energy Cannon . | . . . . Ballistic Gun 1 | . . . 1 Ballistic Cannon . | . . . . Launcher 1 | . . 1 . Special Weapon . | . . . . Impact Weapon . | . . . . Slashing Weapon . | . . . . Piercing Weapon . | . . . . Special Melee Weapon . | . . . . Unidentified Prototypes . | . . . . Parts Lost 5 | . . . 5 Power . | . . . . Propulsion 2 | . . . 2 Utility 1 | . . . 1 Weapon 2 | . . . 2 Highest Loss Streak 5 | . . . 5 To Critical Strikes . | . . . . Average Slot Usage (%) 81 | . 100 100 61 Engine 12 | . 14 14 11 Treads 2 | . . . 4 Leg 19 | . 28 28 11 Device 9 | . 14 14 4 Storage 13 | . 14 14 12 Energy Gun 13 | . 28 14 7 Ballistic Gun 3 | . . . 6 Launcher 6 | . . 14 3 Naked Turns . | . . . . Heaviest Build 16 | 14 14 16 16 Greatest Support 40 | 20 20 20 40 Greatest Overweight (x) 3 | 1 . . 3 Average Overweight (x) . | . . . . Largest Inventory Capacity 8 | 8 8 8 8 Average Capacity 7 | 7 8 8 8 Most Carried 8 | 8 8 8 8 Average Carried 7 | 6 7 7 6 Final Capacity 8 | 8 8 8 8 Final Carried 8 | 8 8 8 4 Class Distribution -------------------- 100% | Mutant Dominant Class ---------------- Mutant | -10/Materials Mutant | -10/Mines Mutant | -9/Materials Resources | -11 -10 -10 -9 ----------- Run | Yrd Mat Min Mat Matter Collected 310 | 281 . 20 9 Remotely . | . . . . Salvage Created 261 | 133 . 20 108 Parts 8 | 3 . 5 . Haulers Intercepted . | . . . . Recyclers Shooed . | . . . . Parts Field Recycled . | . . . . Retrieved Matter . | . . . . Parts Self-Destructed . | . . . . Prevented . | . . . . Kills | -11 -10 -10 -9 ------- Run | Yrd Mat Min Mat Combat Hostiles Destroyed 5 | . . 3 2 Guns 2 | . . . 2 AOE 3 | . . 3 . Classes Destroyed 6 | 3 . 1 2 Worker 1 | 1 . . . Tunneler 1 | 1 . . . Recycler 1 | 1 . . . Swarmer 3 | . . 3 . Grunt 1 | . . . 1 Sentry 1 | . . . 1 Best Kill Streak 3 | 1 . 3 2 Combat Bots Only 3 | . . 3 2 Max Kills in Single Turn 3 | 1 . 3 1 Gunslinging . | . . . . Exploded 3 | . . 3 . Melee . | . . . . Uniques/NPCs Destroyed . | . . . . Combat | -11 -10 -10 -9 -------- Run | Yrd Mat Min Mat Hostile Shots Fired 57 | . . 3 54 Missed 14 | . . . 14 Damage Taken 577 | . . 50 527 Core 90 | . . . 90 Absorbed by Shields . | . . . . Core Remaining (%) 100 | 100 . 100 . Volleys Fired 32 | 15 . 1 16 Largest 2 | 2 . 2 2 Hottest 90 | 90 . 80 80 Shots Fired 60 | 29 . 2 29 Gun 58 | 29 . 1 28 Cannon . | . . . . Launcher 2 | . . 1 1 Special . | . . . . Kinetic 13 | . . . 13 Thermal 45 | 29 . 1 15 Explosive 2 | . . 1 1 Electromagnetic . | . . . . Robot Hit Streak 10 | 7 . . 10 Robot Miss Streak 3 | 3 . . 2 Penetration Max . | . . . . Secondary Targets . | . . . . Shots Hit Robots 41 | 18 . . 23 Core Hits 16 | 4 . 3 9 Critical Kills . | . . . . Critical Parts Destroyed . | . . . . Critical Strikes 1 | 1 . . . Burn 1 | 1 . . . Melee Attacks . | . . . . Impact . | . . . . Slashing . | . . . . Piercing . | . . . . Sneak Attacks . | . . . . Combat Hostiles . | . . . . Follow-up Attacks . | . . . . Damage Inflicted 616 | 209 . 147 260 Guns 438 | 209 . . 229 Cannons . | . . . . Explosions 178 | . . 147 31 Melee . | . . . . Ramming . | . . . . Kinetic 81 | . . . 81 Thermal 357 | 209 . . 148 Explosive 178 | . . 147 31 Electromagnetic . | . . . . Impact . | . . . . Slashing . | . . . . Piercing . | . . . . Highest Corruption . | . . . . Average Corruption . | . . . . Corruption Purged . | . . . . Corruption Blocked . | . . . . Overload Shots . | . . . . Overflow Damage . | . . . . Projectiles . | . . . . Explosions . | . . . . Melee . | . . . . Knockbacks . | . . . . Impact . | . . . . Kinetic . | . . . . Secondary . | . . . . Self-Inflicted Damage 32 | . . 32 . Shots 1 | . . 1 . Rammed . | . . . . Targets Rammed . | . . . . Kicked . | . . . . Crushed . | . . . . Highest Temperature 160 | 60 . 18 160 Average Temperature 47 | 29 . 12 69 Received Heat Transfer 219 | . . . 219 Siege Activations . | . . . . Robots Corrupted . | . . . . Combat Hostiles . | . . . . Parts Fried . | . . . . Impact Corruptions . | . . . . Robots Melted . | . . . . Combat Hostiles . | . . . . Parts Melted 4 | 1 . . 3 Heat Transferred 1064 | 620 . . 444 Parts Sabotaged . | . . . . Parts Stolen . | . . . . Parts Stripped . | . . . . Power Chain Reactions . | . . . . Alert | -11 -10 -10 -9 ------- Run | Yrd Mat Min Mat Peak Influence 96 | 15 15 82 96 Initial 31 | . 9 5 31 Average 35 | 5 13 80 56 Maximum Alert Level . | . . . . Low Security (%) 100 | 100 100 100 100 Level 1 . | . . . . Level 2 . | . . . . Level 3 . | . . . . Level 4 . | . . . . Level 5 . | . . . . High Security . | . . . . Max Security . | . . . . Squads Dispatched . | . . . . Investigation . | . . . . Extermination . | . . . . Reinforcement . | . . . . Assault . | . . . . Garrison . | . . . . Intercept . | . . . . Searches Triggered . | . . . . Construction Impeded . | . . . . Haulers Reinforced . | . . . . Active Scanning Responses . | . . . . Cargo Convoy Interrupts . | . . . . Stealth | -11 -10 -10 -9 --------- Run | Yrd Mat Min Mat Distress Signals . | . . . . Communications Jammed . | . . . . Distress Signals . | . . . . Times Spotted 12 | . 1 3 8 Peak Tracking Total 5 | . 1 3 5 Tactical Retreats 1 | . . . 1 Traps | -11 -10 -10 -9 ------- Run | Yrd Mat Min Mat Traps Triggered . | . . . . Indirectly . | . . . . Trap Hack Attempts . | . . . . Triggered . | . . . . Disarmed . | . . . . Reprogrammed . | . . . . Reused . | . . . . Traps Extracted . | . . . . Installed . | . . . . Triggered . | . . . . Machines | -11 -10 -10 -9 ---------- Run | Yrd Mat Min Mat Machines Disabled . | . . . . Max in Single Turn . | . . . . Machines Repaired . | . . . . Machines Dismantled . | . . . . Machines Sabotaged . | . . . . Overloaded Fab Kills . | . . . . Hacking | -11 -10 -10 -9 --------- Run | Yrd Mat Min Mat Machines Accessed 2 | . 1 . 1 Terminals 2 | . 1 . 1 Fabricators . | . . . . Repair Stations . | . . . . Recycling Units . | . . . . Scanalyzers . | . . . . Garrison Access . | . . . . Total Hacks 3 | . 1 . 2 Successful 1 | . 1 . . Failed 2 | . . . 2 Catastrophic . | . . . . Database Lockouts . | . . . . Manual 3 | . 1 . 2 Terminals 3 | . 1 . 2 Fabricators . | . . . . Repair Stations . | . . . . Recycling Units . | . . . . Scanalyzers . | . . . . Garrison Access . | . . . . Terminal Hacks . | . . . . Fabricator Hacks . | . . . . Repair Station Hacks . | . . . . Recycling Unit Hacks . | . . . . Scanalyzer . | . . . . Garrison Access Hacks . | . . . . Unauthorized Hacks 1 | . 1 . . Terminals 1 | . 1 . . Operators 1 | . 1 . . Fabricators . | . . . . Repair Stations . | . . . . Recycling Units . | . . . . Scanalyzers . | . . . . Garrison Access . | . . . . Data Cores Recovered . | . . . . Used . | . . . . Hacking Detections 2 | . 1 . 1 Full Trace Events . | . . . . Feedback Events . | . . . . Feedback Blocked . | . . . . Robot Schematics Acquired . | . . . . Robots Built . | . . . . Authchips . | . . . . Time . | . . . . Total Robot Build Rating . | . . . . Part Schematics Acquired . | . . . . Parts Built . | . . . . Authchips . | . . . . Time . | . . . . Total Part Build Rating . | . . . . Parts Repaired . | . . . . Time . | . . . . Parts Recycled . | . . . . Recycled Matter . | . . . . Retrieved Matter . | . . . . Retrieved Components . | . . . . Parts Scanalyzed . | . . . . Part Schematics Acquired . | . . . . Parts Damaged . | . . . . Bothacking | -11 -10 -10 -9 ------------ Run | Yrd Mat Min Mat Used RIF Installer . | . . . . Robots Hacked . | . . . . Non-combat . | . . . . Combat . | . . . . Robot Hacks Applied . | . . . . Relay Couplers Released . | . . . . Fabnet Peak Effective % . | . . . . Robots Rewired . | . . . . Allies Hacked . | . . . . Hacks Repelled . | . . . . Allies | -11 -10 -10 -9 -------- Run | Yrd Mat Min Mat Total Allies . | . . . . Largest Group . | . . . . Highest-Rated Group . | . . . . Highest-Rated Ally . | . . . . Total Orders . | . . . . Ally Attacks . | . . . . Total Damage . | . . . . Kills . | . . . . Allies Corrupted . | . . . . Allies Melted . | . . . . Intel | -11 -10 -10 -9 ------- Run | Yrd Mat Min Mat Robot Analysis Total . | . . . . Derelict Logs Recovered . | . . . . Drone Launches . | . . . . Drone Recoveries . | . . . . Exploration | -11 -10 -10 -9 ------------- Run | Yrd Mat Min Mat Turns Passed 580 | 226 75 111 168 Spaces Moved 354 | 129 58 83 84 Core 23 | 14 . . 9 Treads 42 | 24 . . 18 Legs 289 | 91 58 83 57 Wheels . | . . . . Hover . | . . . . Flight . | . . . . Fastest Speed 50 | 50 120 120 120 Average Speed 125 | 122 120 120 140 Slowest Speed 200 | 160 120 120 200 Overloaded Moves . | . . . . Propulsion Burnouts . | . . . . Robots Hopped . | . . . . Cave-ins Triggered . | . . . . Exploration Rate (%) 16 | 7 17 26 15 Regions Visited 3 Branch Regions 1 Pre-discovered Areas . | . . . . Known Exits Taken . | . . . . Unknown Exits Taken 3 | 1 1 1 . Scrap Searched . | . . . . Spaces Dug 7 | . . 7 . Terrain Destroyed 17 | . . 7 10 Melee . | . . . . Projectile . | . . . . AOE 17 | . . 7 10 Terrain Rammed . | . . . . Walls Destroyed . | . . . . Machines Disabled . | . . . . Actions | -11 -10 -10 -9 --------- Run | Yrd Mat Min Mat Total 431 | 166 65 93 107 Wait 10 | . . 7 3 Move 351 | 128 57 82 84 Hop . | . . . . Pick Up 18 | 13 4 1 . Fast Attach 4 | 4 . . . Attach 9 | 4 . 1 4 Detach . | . . . . Swap . | . . . . Drop 7 | 2 4 1 . Fire 32 | 15 . 1 16 Melee . | . . . . Ram . | . . . . Kick . | . . . . Crush . | . . . . Escape Stasis . | . . . . Rewire . | . . . . Trap . | . . . . Miscellaneous . | . . . . Route ------- -11/Scrapyard -10/Materials -10/Mines -9/Materials History --------- Turn | Location | Event 13 | -11/Scrapyard | Discovered new exit (range 15) 227 | -11/Scrapyard | Entered Materials 240 | -10/Materials | Discovered new exit (range 15) 302 | -10/Materials | Entered Mines 324 | -10/Mines | Build established: Mutant 403 | -10/Mines | Discovered new exit (range 9) 413 | -10/Mines | Entered Materials 413 | -9/Materials | Evolved 2 slots: Utility x2 558 | -9/Materials | Lost 5 parts (2n1u2w) 581 | -9/Materials | Self-destructed Last Messages --------------- LOCATION=UNKNOWN GOAL=ESCAPE 00418_ K-01 Serf collects debris. 00477_ Grenade Launcher destroyed. 00483_ Imp. Terrain Scanner destroyed. 00487_ Critical hit (Burn: +37). 00489_ Aluminum Leg destroyed. 00492_ Y-45 Defender heat short circuits Heat Sink. 00510_ G-47 Trooper destroyed. 00518_ Aluminum Leg destroyed. 00527_ Y-45 Defender heat damages Broken Heat Sink, Lgt. Armor Plating, Beam Rifle. 00527_ Med. Laser destroyed. 00529_ Hvy. Assault Rifle melted. 00529_ Heat Sink melted. 00529_ Imp. Ion Engine melted. 00529_ Y-45 Defender destroyed. 00531_ Acquired 9 matter. 00565_ Connecting with Terminal... 00565_ Current location identified: Materials Map ----- +----------------------------------------------------+ | ????????????????????????????????????????????????? | | ????????????????????????????????????????????????? | | ????????????????????????????????????????????????? | | ????????????????????????????????????????????????? | | ????????????????????????????????????????????????? | | ????????????????????????????????????????????????? | | ????????????????????????????????????????????????? | | ????????????????????????????????????????????????? | | ????????????????????????????????????????????????? | | ????????????????????????????????????????????????? | | ?????????????????????? ???????????????????????? | | ?????????????????????# ???????????????????????? | | ?????????????????????# ???????????????????????? | | ?????????????????????# ???????????????????????? | | ?????????????????????# ???????????????????????? | | ?????????????????????# ???????????????????????? | | ?????????????????????# #??????????????????????? | | ?????????????????????# #??????????????????????? | | ?????????????????????# #??????????????????????? | | ?????????????????????# +??????????????????????? | | ?????????????????????# ss#??????????????????????? | | ?????????????????????# s #??????????????????????? | | ?????????????????????# #??????????????????????? | | ?????????????????????# #?#######??????????????? | | ?????????????????????# # #??????????????? | | ?????????????????????# @# """ #??????????????? | | ???????????########### + ""R" ???????????????? | | ???????????# # # "" " #??????????????? | | ???????????# # # #??????????????? | | ???????????# """ #w #?#######??????????????? | | ???????????# """ # #??????????????????????? | | ??#????##??# """ # #??????????????????????? | | ???????????# """ #g #??????????????????????? | | ???????#???# """ "T" + k #??????????????????????? | | ??????#???## # #??????????????????????? | | ???????????###+####### #??????????????????????? | | ???????????# #???# r#??????????????????????? | | ???????????# #???# ##?????????????????????? | | #??????????# #???# #??????????????????????? | | ???????????# #???# #??????????????????????? | | ???????????# #???# #??????????????????????? | | ???########## ##???# ??????????????????????? | | ???# # #????# #??????????????????????? | | ???# """ # #????? #??????????????????????? | | ???# """%+% #????? #? ????????????????????? | | ???# """ # #????? #??????????????????????? | | ???# # ?? #??????????????????????? | | ???# """ + ???????????????????????? | | ???# """ #??????????????????????????? | | ???# """ #???? ?????????????????????? | +----------------------------------------------------+ Best States ------------- Heat Dissipation 28 Energy Generation 10 Energy Capacity 250 Matter Stores 320 Matter Capacity 350 Sight Range 16 Terrain Scan Range 16 Terrain Scan Density 10 Evasion (%) 55 Recoil Reduction 2 Item Schematics ----------------- None Robot Schematics ------------------ None Fabricated ------------ Nothing Alien Tech Used ----------------- None Achievements -------------- None Challenges ------------ None Game ------ Seed TiamatFlyingFalx Manual? 0 Play Time 00:09:15 Cumulative 19.8 hours Start 2024.07.05 @ 16:48:24 End 2024.07.05 @ 16:56:01 Sessions 1 Manual Loads 0 Difficulty Rogue Special Mode None Game No. 29 Rogue 29 Adventurer 0 Explorer 0 Win Type - Total 0 Types 0/0/0/0/0/0/0/0/0 Lore% 18 Gallery% 27 Achievement% 19 Wizard Run 0 Options --------- Layout 0 ASCII 0 Keyboard 1 Movement Numpad Keybinds 0 Fullscreen 1 Font 24/Smallcaps Map View 76x50 Zoom Use 0% Tactical HUD 1 Map Filters NONE Filters NONE Steam 1 RUN: 7ee10839-4db8-46e8-aa47-9c540363d3c8